[Event "SixDays Budapest IM-A January 2024"]
[Site "Budapest"]
[Date "2024.01.28"]
[Round "2.2"]
[White "Lim, Zhuo Ren"]
[Black "Vetokhina, Sofia"]
[Result "1-0"]
[ECO "E62"]
[WhiteElo "2218"]
[BlackElo "2020"]
[Annotator "NA RC"]
[PlyCount "141"]
[EventDate "2024.01.26"]
[EventType "tourn"]
[EventCountry "HUN"]
[SourceTitle "playchess.com"]
[Source "ChessBase"]
[SourceQuality "1"]
[TimeControl "5400+30"]

1. Nf3 {[%emt 0:08:07]} Nf6 {[%emt 0:00:11]} 2. c4 {[%emt 0:00:12]} g6 {[%emt 0:01:03]} 3. g3 {[%emt 0:00:06]} Bg7 {[%emt 0:00:09]} 4. Bg2 {[%emt 0:00:08]} O-O {[%emt 0:00:09]} 5. O-O {[%emt 0:00:13]} d6 {[%emt 0:00:20]} 6. d4 {[%emt 0:00:14]} Nc6 {[%emt 0:00:29]} 7. Nc3 {[%emt 0:00:20]} e5 {[%emt 0:00:58]} 8. dxe5 {[%emt 0:00:22]} Nxe5 {[%emt 0:00:45]} 9. Nxe5 {[%emt 0:00:20]} dxe5 {[%emt 0:00:09]} 10. Nb5 {[%emt 0:00:17]} c6 {[%emt 0:09:37]} 11. Nd6 {[%emt 0:00:06]} Qc7 {[%emt 0:01:52]} 12. Nxc8 {[%emt 0:00:15]} Raxc8 {[%emt 0:00:40]} 13. b4 {[%emt 0:00:10]} a5 {[%emt 0:15:50]} 14. a3 {[%emt 0:00:32]} Rfd8 {[%emt 0:01:36]} 15. Qb3 {[%emt 0:00:26]} axb4 {[%emt 0:04:16]} 16. axb4 {[%emt 0:00:06]} Ra8 {[%emt 0:07:40]} 17. Rb1 {[%emt 0:14:02]} h6 {[%emt 0:07:04]} 18. h3 {[%emt 0:11:41]} Qe7 {[%emt 0:06:11]} 19. Be3 {[%emt 0:02:42]} Nd7 {[%emt 0:08:36]} 20. Rfd1 {[%emt 0:00:40]} e4 {[%emt 0:04:06]} 21. Bf4 {[%emt 0:02:14]} g5 {[%emt 0:01:45]} 22. Bc7 {[%emt 0:02:55]} Re8 {[%emt 0:01:10]} 23. Bd6 {[%emt 0:00:21]} Qe6 {[%emt 0:00:17]} 24. e3 {[%emt 0:03:26]} f5 {[%emt 0:04:00]} 25. c5 {[%emt 0:01:13]} Qxb3 {[%emt 0:07:06]} 26. Rxb3 {[%emt 0:01:34]} Be5 {[%emt 0:00:26]} 27. Rbb1 {[%emt 0:09:06]} Kg7 {[%emt 0:01:54]} 28. b5 {[%emt 0:00:46]} Bxd6 {[%emt 0:03:40]} 29. bxc6 {[%emt 0:01:49]} bxc6 {[%emt 0:01:24]} 30. Rb7 {[%emt 0:01:03]} Bxc5 {[%emt 0:00:33]} 31. Rdxd7+ {[%emt 0:00:06]} Kf6 {[%emt 0:00:22]} 32. Rh7 {[%emt 0:01:02]} Ke5 {[%emt 0:03:32]} 33. Rxh6 {[%emt 0:03:41]} Ra1+ {[%emt 0:00:26]} 34. Kh2 {[%emt 0:00:24]} Re6 {[%emt 0:04:02]} 35. Rxe6+ {[%emt 0:00:45]} Kxe6 {[%emt 0:00:02]} 36. Rc7 {[%emt 0:00:06]} Ra6 {[%emt 0:00:46]} 37. Bf1 {[%emt 0:00:16]} Rb6 {[%emt 0:00:08]} 38. Bc4+ {[%emt 0:00:13]} Kf6 {[%emt 0:00:09]} 39. Kg2 {[%emt 0:00:24]} Bd6 {[%emt 0:01:25]} 40. Rd7 {[%emt 0:00:25]} Be7 {[%emt 0:00:45]} 41. Rc7 {[%emt 0:00:21]} Bd6 {[%emt 0:00:18]} 42. Rf7+ {[%emt 0:00:06]} Kg6 {[%emt 0:01:41]} 43. Rd7 {[%emt 0:01:35]} Be5 {[%emt 0:00:24]} 44. Re7 {[%emt 0:00:38]} Bc3 {[%emt 0:01:41]} 45. g4 {[%emt 0:01:17]} fxg4 {[%emt 0:02:12]} 46. hxg4 {[%emt 0:00:02]} Rb2 {[%emt 0:00:01]} 47. Rxe4 {[%emt 0:00:48]} Be1 {[%emt 0:00:52]} 48. Re6+ {[%emt 0:00:08]} Kg7 {[%emt 0:00:18]} 49. Re7+ {[%emt 0:00:57]} Kg6 {[%emt 0:00:01]} 50. Rf7 {[%emt 0:03:40]} Rb4 {[%emt 0:00:19]} 51. Be6 {[%emt 0:00:12]} Rxg4+ {[%emt 0:01:19]} 52. Kf3 {[%emt 0:02:31]} Rb4 {[%emt 0:00:57]} 53. Ke2 {[%emt 0:00:31]} Bc3 {[%emt 0:00:27]} 54. Rc7 {[%emt 0:00:23]} Rb2+ {[%emt 0:00:14]} 55. Kf1 {[%emt 0:00:15]} Rb6 {[%emt 0:01:02]} 56. Bd7 {[%emt 0:00:14]} Be5 {[%emt 0:00:27]} 57. Rc8 {[%emt 0:00:07]} Rb1+ {[%emt 0:00:10]} 58. Kg2 {[%emt 0:00:11]} Rc1 {[%emt 0:00:17]} 59. Bxc6 {[%emt 0:00:21]} Kg7 {[%emt 0:00:42]} 60. Re8 {[%emt 0:00:33]} Rxc6 {[%emt 0:00:11]} 61. Rxe5 {[%emt 0:00:03]} Kf6 {[%emt 0:00:01]} 62. Ra5 {[%emt 0:00:42]} Rc4 {[%emt 0:00:39]} 63. Kg3 {[%emt 0:01:24]} Rc3 {[%emt 0:00:31]} 64. Ra8 {[%emt 0:00:38]} Rc4 {[%emt 0:00:44]} 65. f3 {[%emt 0:00:43]} Rc7 {[%emt 0:01:11]} 66. Ra6+ {[%emt 0:00:13]} Kg7 {[%emt 0:00:30]} 67. Ra5 {[%emt 0:00:06]} Kf6 {[%emt 0:00:41]} 68. Kg4 {[%emt 0:00:13]} Rc4+ {[%emt 0:00:35]} 69. e4 {[%emt 0:00:07]} Rc3 {[%emt 0:00:28]} 70. Rf5+ {[%emt 0:00:09]} Ke6 {[%emt 0:00:15]} 71. Kxg5 {[%emt 0:00:16]} 1-0

[Event "SixDays Budapest IM-A January 2024"]
[Site "Budapest"]
[Date "2024.01.28"]
[Round "2.3"]
[White "Szalay-Ocsak, Bank"]
[Black "Balla, Tamas-Kristof"]
[Result "1/2-1/2"]
[ECO "B38"]
[WhiteElo "2165"]
[BlackElo "2283"]
[Annotator "TA"]
[PlyCount "37"]
[EventDate "2024.01.26"]
[EventType "tourn"]
[EventCountry "HUN"]
[SourceTitle "playchess.com"]
[Source "ChessBase"]
[SourceQuality "1"]
[TimeControl "5400+30"]

{[%evp 32,37,15,15,18,11,12,12]} 1. e4 {[%emt 0:05:58]} c5 {[%emt 0:10:14]} 2. Nf3 {[%emt 0:00:13]} g6 {[%emt 0:00:08]} 3. d4 {[%emt 0:00:38]} cxd4 {[%emt 0:00:05]} 4. Nxd4 {[%emt 0:00:17]} Bg7 {[%emt 0:00:06]} 5. c4 {[%emt 0:00:48]} Nc6 {[%emt 0:00:37]} 6. Be3 {[%emt 0:00:40]} Nf6 {[%emt 0:01:41]} 7. Nc3 {[%emt 0:00:30]} d6 {[%emt 0:00:07]} 8. f3 {[%emt 0:02:51]} Nxd4 {[%emt 0:00:24]} 9. Bxd4 {[%emt 0:00:15]} O-O {[%emt 0:00:06]} 10. Qd2 {[%emt 0:01:40]} Be6 {[%emt 0:03:58]} 11. Rc1 {[%emt 0:14:52]} Qa5 {[%emt 0:00:17]} 12. Be2 {[%emt 0:07:10]} Rfc8 {[%emt 0:00:24]} 13. b3 {[%emt 0:00:49]} a6 {[%emt 0:00:49]} 14. Be3 {[%emt 0:07:44]} b5 {[%emt 0:02:44]} 15. Nd5 {[%emt 0:10:21]} Qxd2+ {[%emt 0:01:10]} 16. Kxd2 {[%emt 0:00:15]} Nxd5 {[%emt 0:00:07]} 17. cxd5 {[%emt 0:00:46] The position is equal.} Bd7 {[%emt 0:00:06]} 18. Rxc8+ {[%emt 0:02:46]} Rxc8 {[%emt 0:00:07]} 19. Rc1 {[%emt 0:00:08] An uneventful encounter.   OK:         	White=1     	---} 1/2-1/2

[Event "SixDays Budapest IM-A January 2024"]
[Site "Budapest"]
[Date "2024.01.28"]
[Round "2.4"]
[White "Hacker, Jonas"]
[Black "Orso, Miklos"]
[Result "1-0"]
[ECO "B31"]
[WhiteElo "2420"]
[BlackElo "2172"]
[Annotator "TA"]
[PlyCount "105"]
[EventDate "2024.01.26"]
[EventType "tourn"]
[EventCountry "HUN"]
[SourceTitle "playchess.com"]
[Source "ChessBase"]
[SourceQuality "1"]
[TimeControl "5400+30"]

{[%evp 19,105,0,10,0,52,24,56,50,80,75,79,63,77,78,90,90,102,100,106,113,138,144,123,123,119,115,125,123,109,80,103,87,112,92,190,183,185,181,257,269,284,284,287,292,294,275,272,251,311,309,315,311,324,318,321,297,313,322,328,330,322,320,310,277,487,462,548,518,536,557,541,534,1666,1750,1799,1640,2244,1959,12847,11838,29976,29977,29977,29978,29979,29979,29983,29984]} 1. e4 {[%emt 0:00:03]} c5 {[%emt 0:03:21]} 2. Nf3 {[%emt 0:00:06]} Nc6 {[%emt 0:00:07]} 3. Bb5 {[%emt 0:00:03]} g6 {[%emt 0:00:25]} 4. O-O {[%emt 0:00:08]} Bg7 {[%emt 0:00:06]} 5. c3 {[%emt 0:00:14]} Nf6 {[%emt 0:01:23]} 6. Re1 {[%emt 0:00:20]} O-O {[%emt 0:00:24]} 7. d4 {[%emt 0:00:07]} cxd4 {[%emt 0:00:05]} 8. cxd4 {[%emt 0:00:07]} d5 {[%emt 0:00:19]} 9. e5 {[%emt 0:00:08]} Ne4 {[%emt 0:00:14]} 10. Bxc6 {[%emt 0:00:12]} bxc6 {[%emt 0:00:15]} 11. Be3 {[%emt 0:00:17]} Qa5 {[%emt 0:07:55]} ({Günstiger ist} 11... f6 $11) 12. Nbd2 {[%emt 0:05:50][%cal Bb1d2,Bd2b3,Bb3c5,Bc5a4,Ba4c3,Bc3e4][%mdl 32]} Rd8 {[%emt 0:01:21]} 13. Nb3 {[%emt 0:05:48] Weiß steht etwas besser.} Qb6 {[%emt 0:02:25]} 14. Nfd2 {[%emt 0:08:28]} a5 {[%emt 0:06:19]} 15. Nxe4 {[%emt 0:03:07]} dxe4 {[%emt 0:00:03]} 16. Qc2 {[%emt 0:00:41]} Bf5 {[%emt 0:08:53]} 17. Nc5 {[%emt 0:06:53]} Rd5 {[%emt 0:16:16]} 18. h3 {[%emt 0:08:35][%cal Og2g4]} (18. Nxe4 Rb5 $11) 18... h5 {[%emt 0:01:15]} 19. Rac1 {[%emt 0:02:12]} (19. Nxe4 Rb5 $11) 19... f6 {[%emt 0:09:32]} 20. Na4 {[%emt 0:04:33]} Qd8 {[%emt 0:05:57]} 21. exf6 {[%emt 0:05:06]} (21. Qxc6 Rc8 22. Qa6 Rxc1 23. Bxc1 (23. Rxc1 fxe5 24. Nb6 exd4 $14) 23... Rxd4) 21... Bxf6 {[%emt 0:00:09]} 22. Nc3 {[%emt 0:04:20]} (22. Qxc6 Rc8 23. Qa6 Rxc1 24. Rxc1 Bxd4 25. Bxd4 Rxd4 $11) 22... Rd6 {[%emt 0:01:40]} 23. Nxe4 {[%emt 0:08:38]} Kg7 {[%emt 0:00:58]} 24. f3 {[%emt 0:01:36]} Rb8 {[%emt 0:04:57]} 25. b3 {[%emt 0:05:02] Weiß steht aktiver.} a4 {[%emt 0:00:19]} 26. bxa4 {[%emt 0:01:27]} Bxd4 {[%emt 0:08:07]} (26... Bxe4 $16 27. Qxe4 Rb4) 27. Bxd4+ $18 {[%emt 0:01:19]} Rxd4 {[%emt 0:00:02]} 28. Qc3 {[%emt 0:00:54]} (28. Qxc6 Rc8 29. Qb5 Rxc1 30. Rxc1 Bxe4 31. fxe4 Kh6 $15) 28... e5 {[%emt 0:00:57]} (28... Rbb4 {kämpft weiter.} 29. Ng3 (29. Qxc6 Bxe4 30. Rxe4 Rxe4 $11) 29... Bd3) 29. Nc5 {[%emt 0:05:30]} ({Weniger gut wäre} 29. Qxc6 Qb6 $16) 29... Qd5 {[%emt 0:09:35]} 30. Nb3 {[%emt 0:02:18]} Rd3 {[%emt 0:00:47]} 31. Qxe5+ {[%emt 0:06:58]} Qxe5 {[%emt 0:00:27]} 32. Rxe5 {[%emt 0:00:02]} Rd6 {[%emt 0:02:43]} 33. Rec5 {[%emt 0:02:09]} Rb6 {[%emt 0:02:00]} 34. a5 {[%emt 0:00:53]} Ra6 {[%emt 0:00:09]} 35. R5c3 {[%emt 0:01:31]} Bc8 {[%emt 0:02:36]} 36. h4 {[%emt 0:02:01]} Kf7 {[%emt 0:00:16]} 37. Kh2 {[%emt 0:00:25]} Ke7 {[%emt 0:00:18]} 38. Kg3 {[%emt 0:00:14]} Kd8 {[%emt 0:00:17]} 39. Kf4 {[%emt 0:03:19]} Kc7 {[%emt 0:01:19]} 40. Re1 {[%emt 0:00:45]} Rf6+ {[%emt 0:01:23]} 41. Kg3 {[%emt 0:02:05] Schwarz muss nun Re7+ beachten.} Ra8 $2 {[%emt 0:00:25] [#]} (41... Rf7 {ist eine bessere Verteidigung.} 42. Re8 Bf5) 42. Re8 {[%emt 0:00:56]} Rb8 {[%emt 0:01:58]} 43. Rd3 {[%emt 0:02:18]} Rf7 {[%emt 0:01:48] Lässt Re7+ nicht zu} 44. Rdd8 {[%emt 0:01:26]} Rd7 {[%emt 0:00:06]} 45. Rxd7+ {[%emt 0:00:10]} Bxd7 {[%emt 0:00:06]} 46. Rxb8 {[%emt 0:00:30]} Kxb8 {[%emt 0:00:01][%mdl 4096] Endspiel. KB-KN} 47. Nc5 {[%emt 0:00:10]} Bf5 {[%emt 0:01:17]} 48. Kf4 {[%emt 0:00:15]} Kc7 {[%emt 0:00:21]} 49. g4 {[%emt 0:01:01]} hxg4 {[%emt 0:00:08]} 50. fxg4 {[%emt 0:00:02] Weiß setzt Matt.} Bb1 {[%emt 0:00:14]} 51. a4 {[%emt 0:00:26]} Kb8 {[%emt 0:01:02]} 52. Ke5 {[%emt 0:00:55]} Bc2 {[%emt 0:00:11]} 53. h5 {[%emt 0:00:32] Gewichteter Fehlerwert: Weiß=0.06 (makellos) /Schwarz=0.42.  Fehler:       	---       	Schwarz=4     Ungenau:       	Weiß=1     	Schwarz=3     OK:         	Weiß=17    	Schwarz=8     Bester:       	Weiß=2     	Schwarz=1} 1-0

[Event "SixDays Budapest IM-A January 2024"]
[Site "Budapest"]
[Date "2024.01.28"]
[Round "2.5"]
[White "Urhegyi, Marton"]
[Black "Cieslak, Patryk"]
[Result "0-1"]
[ECO "B90"]
[WhiteElo "2255"]
[BlackElo "2284"]
[Annotator "NA RC"]
[PlyCount "98"]
[EventDate "2024.01.26"]
[EventType "tourn"]
[EventCountry "HUN"]
[SourceTitle "playchess.com"]
[Source "ChessBase"]
[SourceQuality "1"]
[TimeControl "5400+30"]

1. e4 {[%emt 0:04:20]} c5 {[%emt 0:00:03]} 2. Nf3 {[%emt 0:00:21]} d6 {[%emt 0:00:04]} 3. d4 {[%emt 0:00:46]} cxd4 {[%emt 0:00:02]} 4. Nxd4 {[%emt 0:00:06]} Nf6 {[%emt 0:00:04]} 5. Nc3 {[%emt 0:00:09]} a6 {[%emt 0:00:02]} 6. Rg1 {[%emt 0:00:38]} h5 {[%emt 0:02:05]} 7. h3 {[%emt 0:01:02]} g6 {[%emt 0:04:01]} 8. g4 {[%emt 0:03:11]} hxg4 {[%emt 0:06:32]} 9. hxg4 {[%emt 0:00:07]} Bg7 {[%emt 0:01:32]} 10. Be3 {[%emt 0:02:59]} Nc6 {[%emt 0:17:59]} 11. Nb3 {[%emt 0:14:46]} b5 {[%emt 0:14:26]} 12. a3 {[%emt 0:12:08]} Bb7 {[%emt 0:04:44]} 13. g5 {[%emt 0:05:23]} Nd7 {[%emt 0:00:21]} 14. f4 {[%emt 0:01:00]} Rh2 {[%emt 0:05:10]} 15. Rg2 {[%emt 0:09:17]} Rxg2 {[%emt 0:03:47]} 16. Bxg2 {[%emt 0:00:23]} Nb6 {[%emt 0:04:52]} 17. Bf1 {[%emt 0:11:26]} Nc4 {[%emt 0:13:18]} 18. Bxc4 {[%emt 0:02:33]} Bxc3+ {[%emt 0:00:26]} 19. bxc3 {[%emt 0:00:37]} bxc4 {[%emt 0:00:03]} 20. Nd2 {[%emt 0:01:47]} Qa5 {[%emt 0:02:50]} 21. Rb1 {[%emt 0:11:24]} Qxc3 {[%emt 0:01:54]} 22. Kf2 {[%emt 0:01:10]} O-O-O {[%emt 0:05:14]} 23. Nf3 {[%emt 0:08:26]} e6 {[%emt 0:04:17]} 24. Rxb7 {[%emt 0:06:25]} Kxb7 {[%emt 0:00:21]} 25. Qb1+ {[%emt 0:00:04]} Kc8 {[%emt 0:05:10]} 26. Bd2 {[%emt 0:02:28]} Qxa3 {[%emt 0:00:42]} 27. Kg2 {[%emt 0:00:31]} Qa4 {[%emt 0:02:06]} 28. Qb2 {[%emt 0:00:30]} Qb5 {[%emt 0:00:51]} 29. Qg7 {[%emt 0:00:15]} Rd7 {[%emt 0:00:38]} 30. Be3 {[%emt 0:00:46]} d5 {[%emt 0:00:59]} 31. Qf8+ {[%emt 0:00:31]} Kb7 {[%emt 0:00:41]} 32. exd5 {[%emt 0:00:18]} Qxd5 {[%emt 0:00:25]} 33. Kg3 {[%emt 0:00:37]} Qd6 {[%emt 0:00:26]} 34. Qg7 {[%emt 0:00:31]} a5 {[%emt 0:00:26]} 35. Qb2+ {[%emt 0:00:32]} Qb4 {[%emt 0:00:02]} 36. Qh8 {[%emt 0:00:25]} a4 {[%emt 0:00:53]} 37. c3 {[%emt 0:00:20]} Qd6 {[%emt 0:00:36]} 38. Qh1 {[%emt 0:00:29]} Qd1 {[%emt 0:00:16]} 39. Qg2 {[%emt 0:00:09]} Rd5 {[%emt 0:00:42]} 40. Qb2+ {[%emt 0:00:56]} Qb3 {[%emt 0:00:07]} 41. Qe2 {[%emt 0:00:18]} Qxc3 {[%emt 0:00:32]} 42. Kf2 {[%emt 0:00:37]} Rd3 {[%emt 0:00:44]} 43. Nd2 {[%emt 0:00:30]} Nd4 {[%emt 0:00:48]} 44. Qe1 {[%emt 0:00:36]} Rxd2+ {[%emt 0:00:30]} 45. Bxd2 {[%emt 0:00:30]} Qf3+ {[%emt 0:00:03]} 46. Kg1 {[%emt 0:00:06]} Qg4+ {[%emt 0:00:39]} 47. Kf1 {[%emt 0:00:53]} Qh3+ {[%emt 0:00:03]} 48. Kf2 {[%emt 0:00:13]} Qh2+ {[%emt 0:00:06]} 49. Kf1 {[%emt 0:00:25]} Qh1+ {[%emt 0:00:04]} 0-1

[Event "SixDays Budapest IM-A January 2024"]
[Site "Budapest"]
[Date "2024.01.28"]
[Round "3.1"]
[White "Cieslak, Patryk"]
[Black "Kuru, Atilla"]
[Result "1/2-1/2"]
[ECO "C18"]
[WhiteElo "2284"]
[BlackElo "2220"]
[Annotator "NA RC"]
[PlyCount "71"]
[EventDate "2024.01.26"]
[EventType "tourn"]
[EventCountry "HUN"]
[SourceTitle "playchess.com"]
[Source "ChessBase"]
[SourceQuality "1"]
[TimeControl "5400+30"]

1. e4 {[%emt 0:00:01]} e6 {[%emt 0:07:17]} 2. d4 {[%emt 0:00:05]} d5 {[%emt 0:00:03]} 3. Nc3 {[%emt 0:00:02]} Bb4 {[%emt 0:00:05]} 4. e5 {[%emt 0:00:03]} c5 {[%emt 0:00:04]} 5. a3 {[%emt 0:00:01]} Bxc3+ {[%emt 0:00:06]} 6. bxc3 {[%emt 0:00:02]} Qa5 {[%emt 0:00:07]} 7. Bd2 {[%emt 0:00:04]} Qa4 {[%emt 0:00:18]} 8. Qg4 {[%emt 0:00:07]} Kf8 {[%emt 0:00:05]} 9. Qd1 {[%emt 0:00:04]} Nc6 {[%emt 0:00:19]} 10. Nf3 {[%emt 0:00:18]} Nge7 {[%emt 0:00:44]} 11. Qb1 {[%emt 0:00:13]} c4 {[%emt 0:00:19]} 12. h4 {[%emt 0:00:14]} h6 {[%emt 0:00:31]} 13. h5 {[%emt 0:00:29]} b6 {[%emt 0:00:46]} 14. Be2 {[%emt 0:01:54]} Bd7 {[%emt 0:00:46]} 15. g4 {[%emt 0:04:31]} f6 {[%emt 0:02:11]} 16. exf6 {[%emt 0:15:50]} gxf6 {[%emt 0:00:02]} 17. Qc1 {[%emt 0:00:47]} Kg7 {[%emt 0:01:09]} 18. Rg1 {[%emt 0:05:48]} Rag8 {[%emt 0:04:41]} 19. Be3 {[%emt 0:09:35]} Qa5 {[%emt 0:10:58]} 20. Kf1 {[%emt 0:07:44]} Qa6 {[%emt 0:08:56]} 21. Rg3 {[%emt 0:02:29]} Qc8 {[%emt 0:01:50]} 22. Kg2 {[%emt 0:03:37]} e5 {[%emt 0:02:09]} 23. dxe5 {[%emt 0:03:16]} fxe5 {[%emt 0:00:49]} 24. Nxe5 {[%emt 0:04:10]} Nxe5 {[%emt 0:01:28]} 25. Bd4 {[%emt 0:00:24]} N7c6 {[%emt 0:00:27]} 26. Qe3 {[%emt 0:00:14]} Kh7 {[%emt 0:00:57]} 27. Bxe5 {[%emt 0:03:53]} Re8 {[%emt 0:00:05]} 28. f4 {[%emt 0:16:11]} Rhg8 {[%emt 0:00:15]} 29. Kh2 {[%emt 0:03:29]} Bxg4 {[%emt 0:13:44]} 30. Rag1 {[%emt 0:01:00]} Nxe5 {[%emt 0:00:07]} 31. fxe5 {[%emt 0:00:10]} Bf5 {[%emt 0:00:04]} 32. Rxg8 {[%emt 0:04:22]} Rxg8 {[%emt 0:00:18]} 33. Bf3 {[%emt 0:02:08]} Be6 {[%emt 0:06:08]} 34. Rxg8 {[%emt 0:05:04]} Qxg8 {[%emt 0:00:08]} 35. Qf4 {[%emt 0:01:13]} Qg7 {[%emt 0:00:05]} 36. Qd4 {[%emt 0:02:35]} 1/2-1/2

[Event "SixDays Budapest IM-A January 2024"]
[Site "Budapest"]
[Date "2024.01.28"]
[Round "3.2"]
[White "Orso, Miklos"]
[Black "Urhegyi, Marton"]
[Result "1-0"]
[ECO "B52"]
[WhiteElo "2172"]
[BlackElo "2255"]
[Annotator "TA"]
[PlyCount "93"]
[EventDate "2024.01.26"]
[EventType "tourn"]
[EventCountry "HUN"]
[SourceTitle "playchess.com"]
[Source "ChessBase"]
[SourceQuality "1"]
[TimeControl "5400+30"]

{[%evp 25,93,-12,-10,-12,-7,-25,-14,-26,-21,-25,-18,-20,-8,0,0,0,2,-38,12,0,25,8,21,0,19,12,18,18,41,34,42,0,8,-14,17,10,18,0,18,18,20,12,20,0,30,-256,-262,-345,-333,-411,-422,-408,-338,-318,-231,-233,0,23,625,626,614,604,923,493,29995,1204,29996,29997,29997,29998]} 1. e4 {[%emt 0:00:00]} c5 {[%emt 0:00:15]} 2. Nf3 {[%emt 0:00:17]} d6 {[%emt 0:01:07]} 3. Bb5+ {[%emt 0:00:15]} Bd7 {[%emt 0:00:47]} 4. Bxd7+ {[%emt 0:00:37]} Qxd7 {[%emt 0:00:05]} 5. O-O {[%emt 0:00:49]} Nc6 {[%emt 0:00:22]} 6. c3 {[%emt 0:00:41]} Nf6 {[%emt 0:02:56]} 7. Re1 {[%emt 0:02:12]} e6 {[%emt 0:00:50]} 8. d4 {[%emt 0:00:13]} cxd4 {[%emt 0:00:09]} 9. cxd4 {[%emt 0:00:04]} d5 {[%emt 0:00:15]} 10. e5 {[%emt 0:00:57]} Ne4 {[%emt 0:00:28]} 11. Nbd2 {[%emt 0:00:11]} Nxd2 {[%emt 0:01:52]} 12. Bxd2 {[%emt 0:00:28]} Be7 {[%emt 0:01:34]} 13. Rc1 {[%emt 0:02:01]} O-O {[%emt 0:00:43]} 14. a3 {[%emt 0:00:21]} a5 {[%emt 0:04:44]} 15. Qe2 {[%emt 0:01:52]} a4 {[%emt 0:05:26]} 16. Rc2 {[%emt 0:15:06] The position is equal.} Rfc8 {[%emt 0:07:49]} 17. Rec1 {[%emt 0:01:12]} Bd8 {[%emt 0:02:40]} 18. Qb5 {[%emt 0:17:20]} Rcb8 {[%emt 0:03:08]} 19. h4 {[%emt 0:08:57]} Ra6 {[%emt 0:05:17][%cal Oc6e5]} (19... Nxe5 $6 20. Qxd7 Nxd7 21. Bf4 $16) 20. Qd3 {[%emt 0:09:40]} Rb6 {[%emt 0:04:49]} 21. g3 {[%emt 0:05:17]} h5 {[%emt 0:15:25]} (21... Rb3 $15 22. Bc3 b5) 22. Bc3 $11 {[%emt 0:03:18]} Ra6 {[%emt 0:05:36]} 23. Ne1 {[%emt 0:06:52][%cal Bf3e1,Be1d3,Bd3c1][%mdl 32]} g6 {[%emt 0:05:49]} 24. Qe3 {[%emt 0:04:37]} Be7 {[%emt 0:05:21]} 25. Nd3 {[%emt 0:00:46]} Kg7 {[%emt 0:02:52]} 26. Bd2 {[%emt 0:01:51]} Rh8 {[%emt 0:01:41]} (26... Qd8 {is interesting.} 27. Qf4 Rb6 28. Rc3 Ra8) 27. Kg2 {[%emt 0:00:24]} Rb6 {[%emt 0:02:50]} 28. Bc3 {[%emt 0:02:51]} Rb3 {[%emt 0:01:34]} 29. Re1 {[%emt 0:01:04]} Qd8 {[%emt 0:02:31]} (29... Rc8 {feels hotter.} 30. Rec1 Na7 31. Bd2 Rxc2 32. Rxc2 Nb5) 30. Nc1 {[%emt 0:01:11]} Rb5 {[%emt 0:01:53]} 31. Nd3 {[%emt 0:01:56]} Qb6 {[%emt 0:01:14]} 32. Qf4 {[%emt 0:00:34]} Qd8 {[%emt 0:03:54]} 33. Qd2 {[%emt 0:02:06]} Qa8 {[%emt 0:01:18]} 34. Qf4 {[%emt 0:00:15]} Rc8 {[%emt 0:01:59]} 35. Re3 $2 {[%emt 0:01:24][%mdl 8192] [#]} (35. Bd2 $11) 35... Nxd4 $1 $19 {[%emt 0:01:46][%mdl 512]} 36. Bxd4 {[%emt 0:00:09]} (36. Qxd4 Rc4) 36... Rxc2 {[%emt 0:00:09]} 37. Rf3 {[%emt 0:00:19]} Qe8 {[%emt 0:01:56]} 38. g4 {[%emt 0:00:56]} hxg4 {[%emt 0:01:51]} (38... Bxh4 39. g5 $17) 39. Qxg4 {[%emt 0:00:25]} Rc4 {[%emt 0:02:04]} 40. h5 {[%emt 0:01:22][%cal Bh4h5,Bh5h6][%mdl 32]} g5 {[%emt 0:00:35]} (40... Rb3 $1 $19 {...g5 would now be deadly.} 41. hxg6 fxg6 (41... Rxd4 42. Qxd4 fxg6 43. Qg4 $16)) 41. h6+ $1 $11 {[%emt 0:01:45]} Kh8 $2 {[%emt 0:01:05][%mdl 8192] [#]} (41... Kxh6 42. Rh3+ Kg7 43. Qh5 f6 44. exf6+ (44. Qxe8 Rxd4 45. Qxe7+ Kg8 46. Qxe6+ Kg7 47. exf6+ Kg6 48. Ne5#) 44... Bxf6 45. Qh6+ (45. Qxe8 Rxd4 46. Rh8 Rg4+ 47. Kf1 Rg1+ 48. Kxg1 Bd4 49. Rg8+ Kh7 50. Qg6#) (45. Qxg5+ Qg6 46. Bxf6+ Kf7 47. Ne5+ Kf8 48. Rh8+ Qg8 49. Rxg8#) 45... Kg8 46. Qxf6 g4 47. Rh8#) (41... Kg6 $11 42. Nf4+ Kh7 43. Nxe6 Rb3 (43... fxe6 $2 44. Qxe6 Rxd4 45. Rf7+ $18) 44. Qf5+ (44. Nxg5+ Bxg5 45. Qf5+ Kxh6 $11) 44... Kxh6 45. Qxf7 Qxf7 46. Rxf7 Bd8) 42. Qh5 $1 $18 {[%emt 0:01:00][%cal Of3f7]} Rxd4 {[%emt 0:02:15] [#]} (42... Ra5 43. Rxf7) 43. Rxf7 $1 {[%emt 0:00:11] White threatens Qg6 and mate.} Rg4+ {[%emt 0:00:33]} (43... Rc5 44. Qg6) 44. Kf1 {[%emt 0:00:20]} Qg8 {[%emt 0:00:28] Prevents Qg6} ({Avoid the trap} 44... Rh4 $2 45. Qg6 (45. Rh7+ Kxh7 46. Qxe8 Bxa3 $18) (45. Rh7+ Kxh7 46. Qxe8 Bxa3 $18)) (44... Rxb2 $18 45. Qg6 (45. Rh7+ Kxh7 46. Qxe8 Rb1+ 47. Ke2 Bxa3 $18) 45... Rxf2+ 46. Kxf2 Qg8 47. Qxg8+ (47. Qxe6 Rf4+ 48. Nxf4 gxf4 $16) 47... Kxg8 48. Rxe7 Re4 49. Rxe6 (49. Rxb7 Rc4 $18) 49... b5) 45. Rg7 {[%emt 0:01:00]} (45. h7 $142 Qe8 46. Qg6 (46. Qxg4 $2 {is the wrong capture.} Qxf7 47. Qxa4 Rb6 $19) 46... Qxf7 47. Qxf7 Rg1+ 48. Kxg1 g4 49. Qg8#) 45... Rh4 {[%emt 0:00:34]} 46. Qg6 {[%emt 0:01:02][%csl Gg6][%cal Rg7g8]} Rh1+ {[%emt 0:00:22]} 47. Kg2 {[%emt 0:00:21] Quite a comeback for White.   Weighted Error Value: White=0.46/Black=0.63.  Loses game:     	White=1     	Black=1      Missed win:     	---       	Black=1      Mistake:       	---       	Black=1      Inaccurate:     	White=3     	Black=3      OK:         	White=6     	Black=8      Best:        	White=1     	Black=1      Strong:       	White=2     	---        Brilliant:      	---       	Black=1} 1-0